[Event "Titled Tuesday Blitz July 11 Late 2023"]
[White "Bruedigam, Martin"]
[Black "Pesotskiy, Mikhail"]
[WhiteFideId "24608033"]
[BlackFideId "34164453"]
[WhiteElo "2544"]
[BlackElo "2388"]
[Result "1-0"]
[Round "7"]
[TimeControl "180+2"]
[Date "2023.07.11"]
[WhiteClock "0:00:11"]
[BlackClock "0:00:00"]
[Board "104"]

1. c4 {[%clk 0:03:00]}  e5 {[%clk 0:02:59]} 2. g3 {[%clk 0:03:00]}  Nc6 {[%clk 0:03:00]} 3. Bg2 {[%clk 0:02:58]}  Bc5 {[%clk 0:03:00]} 4. e3 {[%clk 0:02:58]}  a6 {[%clk 0:02:59]} 5. Ne2 {[%clk 0:02:58]}  Ba7 {[%clk 0:02:59]} 6. O-O {[%clk 0:02:58]}  h5 {[%clk 0:02:56]} 7. d4 {[%clk 0:02:58]}  h4 {[%clk 0:02:53]} 8. Nbc3 {[%clk 0:02:52]}  d6 {[%clk 0:02:52]} 9. b3 {[%clk 0:02:48]}  hxg3 {[%clk 0:02:45]} 10. fxg3 {[%clk 0:02:46]}  Bh3 {[%clk 0:02:41]} 11. Bxh3 {[%clk 0:02:37]}  Rxh3 {[%clk 0:02:42]} 12. Kg2 {[%clk 0:02:38]}  Rh8 {[%clk 0:02:38]} 13. d5 {[%clk 0:02:36]}  Nce7 {[%clk 0:02:36]} 14. e4 {[%clk 0:02:34]}  Qd7 {[%clk 0:02:36]} 15. Ng1 {[%clk 0:02:35]}  Nh6 {[%clk 0:01:41]} 16. Qf3 {[%clk 0:02:32]}  O-O-O {[%clk 0:01:41]} 17. h3 {[%clk 0:01:59]}  f5 {[%clk 0:01:39]} 18. Be3 {[%clk 0:01:52]}  Bd4 {[%clk 0:00:39]} 19. Bxd4 {[%clk 0:01:34]}  exd4 {[%clk 0:00:40]} 20. Nce2 {[%clk 0:01:34]}  fxe4 {[%clk 0:00:41]} 21. Qxe4 {[%clk 0:01:33]}  Nef5 {[%clk 0:00:40]} 22. Nxd4 {[%clk 0:01:33]}  Nxd4 {[%clk 0:00:39]} 23. Qxd4 {[%clk 0:01:33]}  Nf5 {[%clk 0:00:40]} 24. Qd3 {[%clk 0:01:28]}  g6 {[%clk 0:00:16]} 25. Rae1 {[%clk 0:01:28]}  Rde8 {[%clk 0:00:17]} 26. a4 {[%clk 0:01:13]}  Qg7 {[%clk 0:00:17]} 27. Qd2 {[%clk 0:01:03]}  Qd4 {[%clk 0:00:07]} 28. Qxd4 {[%clk 0:00:53]}  Nxd4 {[%clk 0:00:08]} 29. Rxe8+ {[%clk 0:00:40]}  Rxe8 {[%clk 0:00:09]} 30. Rf6 {[%clk 0:00:40]}  Nxb3 {[%clk 0:00:08]} 31. Rxg6 {[%clk 0:00:40]}  Nd2 {[%clk 0:00:06]} 32. Rg4 {[%clk 0:00:38]}  c6 {[%clk 0:00:03]} 33. dxc6 {[%clk 0:00:35]}  bxc6 {[%clk 0:00:04]} 34. Rd4 {[%clk 0:00:31]}  Nb3 {[%clk 0:00:01]} 35. Rxd6 {[%clk 0:00:30]}  Kc7 {[%clk 0:00:02]} 36. Rd3 {[%clk 0:00:27]}  Nc5 {[%clk 0:00:02]} 37. Rf3 {[%clk 0:00:21]}  Nxa4 {[%clk 0:00:02]} 38. g4 {[%clk 0:00:21]}  Nc5 {[%clk 0:00:02]} 39. g5 {[%clk 0:00:21]}  a5 {[%clk 0:00:02]} 40. h4 {[%clk 0:00:22]}  Re4 {[%clk 0:00:01]} 41. Kh3 {[%clk 0:00:20]}  Rxc4 {[%clk 0:00:01]} 42. g6 {[%clk 0:00:20]}  Ne6 {[%clk 0:00:02]} 43. Ne2 {[%clk 0:00:19]}  Rc2 {[%clk 0:00:01]} 44. Ng3 {[%clk 0:00:19]}  Kd6 {[%clk 0:00:01]} 45. Rf6 {[%clk 0:00:17]}  Ke7 {[%clk 0:00:01]} 46. Rf5 {[%clk 0:00:16]}  Rc3 {[%clk 0:00:01]} 47. h5 {[%clk 0:00:16]}  a4 {[%clk 0:00:01]} 48. Rf7+ {[%clk 0:00:13]}  Ke8 {[%clk 0:00:01]} 49. Kg4 {[%clk 0:00:13]}  a3 {[%clk 0:00:02]} 50. Nf5 {[%clk 0:00:11]}  a2 {[%clk 0:00:00]} 51. Ra7 {[%clk 0:00:11]} 1-0


[Site "https://www.chess.com"]

[Event "Titled Tuesday Blitz July 11 Late 2023"]
[White "Rakitic2010"]
[Black "kiwibobo"]
[WhiteElo "2496"]
[BlackElo "2337"]
[Result "0-1"]
[Round "7"]
[TimeControl "180+2"]
[Date "2023.07.11"]
[WhiteClock "0:02:26"]
[BlackClock "0:02:14"]
[Board "108"]

1. e4 {[%clk 0:03:00]}  e5 {[%clk 0:02:57]} 2. d4 {[%clk 0:02:59]}  exd4 {[%clk 0:02:56]} 3. c3 {[%clk 0:02:59]}  d5 {[%clk 0:02:56]} 4. Qxd4 {[%clk 0:02:59]}  dxe4 {[%clk 0:02:53]} 5. Qxe4+ {[%clk 0:02:59]}  Qe7 {[%clk 0:02:34]} 6. Bd3 {[%clk 0:02:50]}  Nf6 {[%clk 0:02:33]} 7. Qxe7+ {[%clk 0:02:39]}  Bxe7 {[%clk 0:02:34]} 8. Nf3 {[%clk 0:02:39]}  O-O {[%clk 0:02:28]} 9. O-O {[%clk 0:02:40]}  Nbd7 {[%clk 0:02:20]} 10. Nbd2 {[%clk 0:02:38]}  Nc5 {[%clk 0:02:21]} 11. Bc2 {[%clk 0:02:38]}  Be6 {[%clk 0:02:18]} 12. Ne4 {[%clk 0:02:35]}  Ncxe4 {[%clk 0:02:14]} 13. Bxe4 {[%clk 0:02:26]}  Nxe4 {[%clk 0:02:14]} 0-1


[Site "https://www.chess.com"]

[Event "Titled Tuesday Blitz July 11 Late 2023"]
[White "Davidson, Kevin"]
[Black "Schnaider, Ilan"]
[WhiteFideId "2056810"]
[BlackFideId "169013"]
[WhiteElo "2369"]
[BlackElo "2630"]
[Result "0-1"]
[Round "7"]
[TimeControl "180+2"]
[Date "2023.07.11"]
[WhiteClock "0:00:00"]
[BlackClock "0:01:12"]
[Board "110"]

1. e4 {[%clk 0:03:00]}  e5 {[%clk 0:02:59]} 2. Nf3 {[%clk 0:03:00]}  Nc6 {[%clk 0:03:00]} 3. Bb5 {[%clk 0:03:00]}  a6 {[%clk 0:03:00]} 4. Ba4 {[%clk 0:03:00]}  Nf6 {[%clk 0:03:00]} 5. O-O {[%clk 0:03:00]}  Be7 {[%clk 0:03:00]} 6. Re1 {[%clk 0:02:59]}  b5 {[%clk 0:03:00]} 7. Bb3 {[%clk 0:03:00]}  O-O {[%clk 0:03:01]} 8. a4 {[%clk 0:03:00]}  b4 {[%clk 0:03:00]} 9. d4 {[%clk 0:02:59]}  exd4 {[%clk 0:02:59]} 10. e5 {[%clk 0:03:00]}  Ne8 {[%clk 0:02:52]} 11. Nxd4 {[%clk 0:02:59]}  Nxd4 {[%clk 0:02:51]} 12. Qxd4 {[%clk 0:03:00]}  d6 {[%clk 0:02:51]} 13. Bf4 {[%clk 0:02:37]}  dxe5 {[%clk 0:02:39]} 14. Bxe5 {[%clk 0:02:38]}  Bb7 {[%clk 0:02:34]} 15. Nd2 {[%clk 0:02:18]}  Bf6 {[%clk 0:02:31]} 16. Qxb4 {[%clk 0:01:42]}  Rb8 {[%clk 0:02:20]} 17. Qc3 {[%clk 0:01:30]}  Bxe5 {[%clk 0:02:03]} 18. Rxe5 {[%clk 0:01:29]}  Nf6 {[%clk 0:01:59]} 19. Rg5 {[%clk 0:01:09]}  Kh8 {[%clk 0:01:49]} 20. Nf3 {[%clk 0:00:53]}  h6 {[%clk 0:01:30]} 21. Rg3 {[%clk 0:00:51]}  Nh5 {[%clk 0:01:30]} 22. Rg4 {[%clk 0:00:40]}  f5 {[%clk 0:01:25]} 23. Rd4 {[%clk 0:00:39]}  Qf6 {[%clk 0:01:23]} 24. Rad1 {[%clk 0:00:28]}  Rbe8 {[%clk 0:01:18]} 25. g3 {[%clk 0:00:15]}  f4 {[%clk 0:01:14]} 26. R1d3 {[%clk 0:00:09]}  fxg3 {[%clk 0:01:13]} 27. hxg3 {[%clk 0:00:00]}  Bxf3 {[%clk 0:01:12]} 0-1


[Site "https://www.chess.com"]

[Event "Titled Tuesday Blitz July 11 Late 2023"]
[White "micke12a"]
[Black "Vlassov, Nikolai"]
[BlackFideId "4103360"]
[WhiteElo "2369"]
[BlackElo "2563"]
[Result "0-1"]
[Round "7"]
[TimeControl "180+2"]
[Date "2023.07.11"]
[WhiteClock "0:00:03"]
[BlackClock "0:00:24"]
[Board "111"]

1. d4 {[%clk 0:02:57]}  Nf6 {[%clk 0:02:59]} 2. Nf3 {[%clk 0:02:56]}  e6 {[%clk 0:02:59]} 3. c4 {[%clk 0:02:57]}  Nc6 {[%clk 0:02:59]} 4. Nc3 {[%clk 0:02:57]}  Bb4 {[%clk 0:02:59]} 5. Qc2 {[%clk 0:02:56]}  d6 {[%clk 0:02:59]} 6. a3 {[%clk 0:02:55]}  Bxc3+ {[%clk 0:02:59]} 7. Qxc3 {[%clk 0:02:56]}  Qe7 {[%clk 0:02:57]} 8. g3 {[%clk 0:02:55]}  e5 {[%clk 0:02:56]} 9. dxe5 {[%clk 0:02:56]}  dxe5 {[%clk 0:02:56]} 10. Bg2 {[%clk 0:02:56]}  O-O {[%clk 0:02:56]} 11. O-O {[%clk 0:02:56]}  Bg4 {[%clk 0:02:56]} 12. h3 {[%clk 0:02:56]}  Bh5 {[%clk 0:02:49]} 13. Bg5 {[%clk 0:02:52]}  h6 {[%clk 0:02:48]} 14. Bxf6 {[%clk 0:02:51]}  Qxf6 {[%clk 0:02:49]} 15. Rad1 {[%clk 0:02:43]}  e4 {[%clk 0:02:28]} 16. Qxf6 {[%clk 0:02:42]}  gxf6 {[%clk 0:02:28]} 17. Nd4 {[%clk 0:02:39]}  Nxd4 {[%clk 0:02:14]} 18. Rxd4 {[%clk 0:02:38]}  f5 {[%clk 0:02:14]} 19. g4 {[%clk 0:02:30]}  fxg4 {[%clk 0:02:12]} 20. hxg4 {[%clk 0:02:27]}  Bxg4 {[%clk 0:02:12]} 21. Rxe4 {[%clk 0:02:26]}  Be6 {[%clk 0:02:09]} 22. Rh4 {[%clk 0:02:18]}  Kg7 {[%clk 0:02:00]} 23. b4 {[%clk 0:02:12]}  c6 {[%clk 0:02:00]} 24. f4 {[%clk 0:02:10]}  Bxc4 {[%clk 0:01:56]} 25. Rf3 {[%clk 0:02:09]}  Rh8 {[%clk 0:01:40]} 26. Rg3+ {[%clk 0:02:09]}  Kf6 {[%clk 0:01:40]} 27. e4 {[%clk 0:02:09]}  a5 {[%clk 0:01:34]} 28. e5+ {[%clk 0:02:08]}  Ke7 {[%clk 0:01:30]} 29. f5 {[%clk 0:02:08]}  Ba2 {[%clk 0:01:23]} 30. Rgh3 {[%clk 0:02:02]}  axb4 {[%clk 0:01:20]} 31. axb4 {[%clk 0:02:01]}  Ra4 {[%clk 0:01:20]} 32. Bf1 {[%clk 0:01:12]}  Bd5 {[%clk 0:01:13]} 33. b5 {[%clk 0:00:58]}  Rg8+ {[%clk 0:01:09]} 34. Kf2 {[%clk 0:00:52]}  Ra2+ {[%clk 0:01:09]} 35. Ke1 {[%clk 0:00:52]}  Rg5 {[%clk 0:01:05]} 36. Rf4 {[%clk 0:00:45]}  h5 {[%clk 0:01:00]} 37. bxc6 {[%clk 0:00:45]}  bxc6 {[%clk 0:01:00]} 38. Rb4 {[%clk 0:00:37]}  Rxf5 {[%clk 0:00:54]} 39. Rb7+ {[%clk 0:00:37]}  Ke6 {[%clk 0:00:54]} 40. Re3 {[%clk 0:00:37]}  Rxe5 {[%clk 0:00:53]} 41. Bh3+ {[%clk 0:00:36]}  Kf6 {[%clk 0:00:53]} 42. Rxe5 {[%clk 0:00:33]}  Kxe5 {[%clk 0:00:53]} 43. Rb8 {[%clk 0:00:33]}  c5 {[%clk 0:00:49]} 44. Rh8 {[%clk 0:00:31]}  Bf3 {[%clk 0:00:47]} 45. Rc8 {[%clk 0:00:28]}  Kd4 {[%clk 0:00:44]} 46. Rf8 {[%clk 0:00:25]}  Ke3 {[%clk 0:00:40]} 47. Re8+ {[%clk 0:00:23]}  Be4 {[%clk 0:00:40]} 48. Rd8 {[%clk 0:00:10]}  f5 {[%clk 0:00:30]} 49. Bf1 {[%clk 0:00:07]}  Ra1+ {[%clk 0:00:27]} 50. Rd1 {[%clk 0:00:06]}  Rxd1+ {[%clk 0:00:27]} 51. Kxd1 {[%clk 0:00:07]}  f4 {[%clk 0:00:27]} 52. Ke1 {[%clk 0:00:06]}  h4 {[%clk 0:00:27]} 53. Bh3 {[%clk 0:00:06]}  c4 {[%clk 0:00:26]} 54. Kd1 {[%clk 0:00:06]}  f3 {[%clk 0:00:26]} 55. Ke1 {[%clk 0:00:06]}  f2+ {[%clk 0:00:25]} 56. Kd1 {[%clk 0:00:03]}  Bd3 {[%clk 0:00:24]} 0-1


[Site "https://www.chess.com"]

[Event "Titled Tuesday Blitz July 11 Late 2023"]
[White "Dubreuil, Julien"]
[Black "Liu, Casper"]
[WhiteFideId "621285"]
[BlackFideId "1454153"]
[WhiteElo "2355"]
[BlackElo "2481"]
[Result "1-0"]
[Round "7"]
[TimeControl "180+2"]
[Date "2023.07.11"]
[WhiteClock "0:02:44"]
[BlackClock "0:01:12"]
[Board "115"]

1. e4 {[%clk 0:03:00]}  c6 {[%clk 0:02:59]} 2. Nf3 {[%clk 0:03:00]}  d5 {[%clk 0:03:00]} 3. exd5 {[%clk 0:03:01]}  cxd5 {[%clk 0:03:00]} 4. Ne5 {[%clk 0:03:01]}  Qd6 {[%clk 0:02:47]} 5. d4 {[%clk 0:03:00]}  Nc6 {[%clk 0:02:42]} 6. Bb5 {[%clk 0:02:59]}  Nf6 {[%clk 0:02:30]} 7. O-O {[%clk 0:02:58]}  g6 {[%clk 0:02:24]} 8. Bf4 {[%clk 0:02:57]}  Qe6 {[%clk 0:02:13]} 9. Re1 {[%clk 0:02:56]}  Ne4 {[%clk 0:01:36]} 10. Rxe4 {[%clk 0:02:49]}  dxe4 {[%clk 0:01:34]} 11. d5 {[%clk 0:02:44]}  Qf5 {[%clk 0:01:12]} 12. dxc6 {[%clk 0:02:44]} 1-0


[Site "https://www.chess.com"]

[Event "Titled Tuesday Blitz July 11 Late 2023"]
[White "WindWhistler11"]
[Black "Cluke86"]
[WhiteElo "2474"]
[BlackElo "2353"]
[Result "1-0"]
[Round "7"]
[TimeControl "180+2"]
[Date "2023.07.11"]
[WhiteClock "0:00:09"]
[BlackClock "0:00:00"]
[Board "116"]

1. Nf3 {[%clk 0:03:00]}  Nf6 {[%clk 0:02:58]} 2. c4 {[%clk 0:03:00]}  d6 {[%clk 0:02:51]} 3. g3 {[%clk 0:03:00]}  e5 {[%clk 0:02:51]} 4. Bg2 {[%clk 0:03:00]}  Be7 {[%clk 0:02:49]} 5. O-O {[%clk 0:03:00]}  O-O {[%clk 0:02:49]} 6. Nc3 {[%clk 0:03:00]}  c6 {[%clk 0:02:48]} 7. d4 {[%clk 0:02:59]}  Qc7 {[%clk 0:02:41]} 8. b3 {[%clk 0:02:58]}  Nbd7 {[%clk 0:02:35]} 9. e3 {[%clk 0:02:58]}  Re8 {[%clk 0:02:31]} 10. Bb2 {[%clk 0:02:58]}  Nf8 {[%clk 0:02:28]} 11. Qc2 {[%clk 0:02:56]}  Ng6 {[%clk 0:02:26]} 12. Rad1 {[%clk 0:02:55]}  e4 {[%clk 0:02:23]} 13. Nxe4 {[%clk 0:02:49]}  Nxe4 {[%clk 0:02:18]} 14. Qxe4 {[%clk 0:02:50]}  a5 {[%clk 0:02:05]} 15. h4 {[%clk 0:02:42]}  f5 {[%clk 0:01:58]} 16. Qc2 {[%clk 0:02:40]}  a4 {[%clk 0:01:53]} 17. b4 {[%clk 0:02:20]}  Bf6 {[%clk 0:01:44]} 18. a3 {[%clk 0:02:16]}  Be6 {[%clk 0:01:36]} 19. Rfe1 {[%clk 0:01:56]}  h6 {[%clk 0:01:34]} 20. Bh3 {[%clk 0:01:50]}  Qd7 {[%clk 0:01:29]} 21. d5 {[%clk 0:01:44]}  cxd5 {[%clk 0:01:22]} 22. cxd5 {[%clk 0:01:43]}  Qc8 {[%clk 0:01:22]} 23. Qb1 {[%clk 0:01:34]}  Bxb2 {[%clk 0:01:16]} 24. dxe6 {[%clk 0:01:32]}  Bf6 {[%clk 0:01:07]} 25. Bxf5 {[%clk 0:01:24]}  Ne7 {[%clk 0:01:06]} 26. Rc1 {[%clk 0:01:23]}  Qd8 {[%clk 0:01:02]} 27. Bh3 {[%clk 0:01:18]}  Rc8 {[%clk 0:01:00]} 28. Rcd1 {[%clk 0:01:13]}  Rc3 {[%clk 0:00:59]} 29. Nd4 {[%clk 0:01:08]}  Rxa3 {[%clk 0:00:51]} 30. Nb5 {[%clk 0:01:04]}  Rb3 {[%clk 0:00:51]} 31. Qa2 {[%clk 0:01:01]}  Qb6 {[%clk 0:00:47]} 32. Qxa4 {[%clk 0:00:58]}  Rb2 {[%clk 0:00:41]} 33. Rxd6 {[%clk 0:00:49]}  Ra2 {[%clk 0:00:22]} 34. Qxa2 {[%clk 0:00:44]}  Qxb5 {[%clk 0:00:21]} 35. Qd2 {[%clk 0:00:42]}  Nc6 {[%clk 0:00:15]} 36. Rb1 {[%clk 0:00:32]}  Ne5 {[%clk 0:00:13]} 37. Bg2 {[%clk 0:00:29]}  Nc4 {[%clk 0:00:12]} 38. Qd5 {[%clk 0:00:27]}  Nxd6 {[%clk 0:00:07]} 39. Qxd6 {[%clk 0:00:27]}  Qf5 {[%clk 0:00:01]} 40. Rd1 {[%clk 0:00:16]}  Re7 {[%clk 0:00:01]} 41. Bd5 {[%clk 0:00:12]}  Kh7 {[%clk 0:00:02]} 42. b5 {[%clk 0:00:09]}  Qe5 {[%clk 0:00:00]} 43. Qb4 {[%clk 0:00:09]} 1-0


[Site "https://www.chess.com"]

[Event "Titled Tuesday Blitz July 11 Late 2023"]
[White "Tsyhanchuk, Stanislav"]
[Black "Rios Escobar, Adan"]
[WhiteFideId "13505130"]
[BlackFideId "3403645"]
[WhiteElo "2314"]
[BlackElo "2427"]
[Result "0-1"]
[Round "7"]
[TimeControl "180+2"]
[Date "2023.07.11"]
[WhiteClock "0:00:03"]
[BlackClock "0:00:13"]
[Board "120"]

1. e4 {[%clk 0:03:00]}  d5 {[%clk 0:02:59]} 2. exd5 {[%clk 0:03:00]}  Nf6 {[%clk 0:02:59]} 3. c4 {[%clk 0:02:58]}  e6 {[%clk 0:02:59]} 4. dxe6 {[%clk 0:02:57]}  Bxe6 {[%clk 0:03:00]} 5. Nf3 {[%clk 0:02:56]}  c5 {[%clk 0:02:59]} 6. Be2 {[%clk 0:02:53]}  Nc6 {[%clk 0:03:00]} 7. O-O {[%clk 0:02:53]}  Qc7 {[%clk 0:03:01]} 8. Nc3 {[%clk 0:02:53]}  Rd8 {[%clk 0:02:59]} 9. h3 {[%clk 0:02:50]}  a6 {[%clk 0:02:54]} 10. a3 {[%clk 0:02:31]}  Bd6 {[%clk 0:02:52]} 11. Qc2 {[%clk 0:02:30]}  O-O {[%clk 0:02:45]} 12. d3 {[%clk 0:02:30]}  Bf5 {[%clk 0:02:44]} 13. Bg5 {[%clk 0:02:26]}  Be7 {[%clk 0:02:30]} 14. Rfe1 {[%clk 0:02:11]}  h6 {[%clk 0:02:30]} 15. Bxf6 {[%clk 0:02:09]}  Bxf6 {[%clk 0:02:30]} 16. Nd5 {[%clk 0:02:09]}  Qd6 {[%clk 0:02:29]} 17. Bf1 {[%clk 0:02:05]}  Bd4 {[%clk 0:02:21]} 18. Qd2 {[%clk 0:01:58]}  Rfe8 {[%clk 0:02:19]} 19. Nxd4 {[%clk 0:01:51]}  Nxd4 {[%clk 0:02:18]} 20. Rxe8+ {[%clk 0:01:51]}  Rxe8 {[%clk 0:02:18]} 21. Re1 {[%clk 0:01:49]}  Re6 {[%clk 0:02:13]} 22. Rxe6 {[%clk 0:01:28]}  Qxe6 {[%clk 0:02:13]} 23. Qe3 {[%clk 0:01:24]}  Qd6 {[%clk 0:01:59]} 24. b4 {[%clk 0:01:19]}  Be6 {[%clk 0:01:52]} 25. bxc5 {[%clk 0:01:11]}  Qxc5 {[%clk 0:01:51]} 26. Nf4 {[%clk 0:00:59]}  Qd6 {[%clk 0:01:50]} 27. Nxe6 {[%clk 0:00:58]}  Nxe6 {[%clk 0:01:51]} 28. Be2 {[%clk 0:00:55]}  Qxa3 {[%clk 0:01:49]} 29. d4 {[%clk 0:00:46]}  Qa1+ {[%clk 0:01:43]} 30. Kh2 {[%clk 0:00:46]}  Qxd4 {[%clk 0:01:43]} 31. Qb3 {[%clk 0:00:34]}  Qxf2 {[%clk 0:01:37]} 32. Bf3 {[%clk 0:00:32]}  b6 {[%clk 0:01:33]} 33. Qa4 {[%clk 0:00:26]}  Qc5 {[%clk 0:01:14]} 34. Qxa6 {[%clk 0:00:23]}  Ng5 {[%clk 0:01:12]} 35. Qa8+ {[%clk 0:00:19]}  Kh7 {[%clk 0:01:12]} 36. Bd5 {[%clk 0:00:20]}  Qd6+ {[%clk 0:01:04]} 37. Kg1 {[%clk 0:00:20]}  Qg3 {[%clk 0:01:00]} 38. Be4+ {[%clk 0:00:19]}  Nxe4 {[%clk 0:00:59]} 39. Qxe4+ {[%clk 0:00:20]}  Qg6 {[%clk 0:01:00]} 40. Qd5 {[%clk 0:00:19]}  Qe6 {[%clk 0:00:56]} 41. Qd3+ {[%clk 0:00:18]}  f5 {[%clk 0:00:56]} 42. Kh2 {[%clk 0:00:17]}  Qe5+ {[%clk 0:00:56]} 43. Kg1 {[%clk 0:00:17]}  Qe4 {[%clk 0:00:51]} 44. Qb3 {[%clk 0:00:12]}  Qd4+ {[%clk 0:00:49]} 45. Kh2 {[%clk 0:00:12]}  h5 {[%clk 0:00:49]} 46. Qf3 {[%clk 0:00:12]}  g6 {[%clk 0:00:45]} 47. Qb7+ {[%clk 0:00:11]}  Kh6 {[%clk 0:00:44]} 48. Qc8 {[%clk 0:00:09]}  Qe5+ {[%clk 0:00:31]} 49. Kg1 {[%clk 0:00:09]}  Qf6 {[%clk 0:00:26]} 50. Qc7 {[%clk 0:00:06]}  h4 {[%clk 0:00:21]} 51. Kh2 {[%clk 0:00:06]}  Kg5 {[%clk 0:00:18]} 52. g3 {[%clk 0:00:03]}  Qb2+ {[%clk 0:00:17]} 53. Kg1 {[%clk 0:00:03]}  Qc1+ {[%clk 0:00:17]} 54. Kf2 {[%clk 0:00:03]}  Qd2+ {[%clk 0:00:17]} 55. Kf1 {[%clk 0:00:02]}  Qd3+ {[%clk 0:00:16]} 56. Ke1 {[%clk 0:00:03]}  Qxg3+ {[%clk 0:00:13]} 57. Kf1 {[%clk 0:00:03]} 0-1


[Site "https://www.chess.com"]

[Event "Titled Tuesday Blitz July 11 Late 2023"]
[White "Haitin, Ilja"]
[Black "Chemin, Justo Reinaldo"]
[WhiteFideId "4501764"]
[BlackFideId "2101580"]
[WhiteElo "2404"]
[BlackElo "2250"]
[Result "0-1"]
[Round "7"]
[TimeControl "180+2"]
[Date "2023.07.11"]
[WhiteClock "0:00:04"]
[BlackClock "0:00:09"]
[Board "123"]

1. Nf3 {[%clk 0:03:00]}  d5 {[%clk 0:02:59]} 2. e3 {[%clk 0:03:00]}  c6 {[%clk 0:03:00]} 3. b3 {[%clk 0:03:00]}  Nf6 {[%clk 0:02:58]} 4. Bb2 {[%clk 0:03:01]}  g6 {[%clk 0:02:58]} 5. Bxf6 {[%clk 0:02:57]}  exf6 {[%clk 0:02:58]} 6. d4 {[%clk 0:02:58]}  Bg7 {[%clk 0:02:58]} 7. Bd3 {[%clk 0:02:57]}  O-O {[%clk 0:02:55]} 8. O-O {[%clk 0:02:57]}  Re8 {[%clk 0:02:52]} 9. c4 {[%clk 0:02:56]}  f5 {[%clk 0:02:45]} 10. cxd5 {[%clk 0:02:54]}  Qxd5 {[%clk 0:02:44]} 11. Nc3 {[%clk 0:02:54]}  Qd6 {[%clk 0:02:43]} 12. Rc1 {[%clk 0:02:52]}  Nd7 {[%clk 0:02:43]} 13. Qc2 {[%clk 0:02:45]}  Nb6 {[%clk 0:02:40]} 14. Rfd1 {[%clk 0:02:44]}  Bd7 {[%clk 0:02:15]} 15. Ne2 {[%clk 0:02:37]}  Nd5 {[%clk 0:02:11]} 16. Qb2 {[%clk 0:02:35]}  h6 {[%clk 0:01:54]} 17. Qd2 {[%clk 0:02:34]}  g5 {[%clk 0:01:52]} 18. Bb1 {[%clk 0:02:32]}  g4 {[%clk 0:01:43]} 19. Nh4 {[%clk 0:02:24]}  Qf6 {[%clk 0:01:41]} 20. g3 {[%clk 0:02:25]}  Qg5 {[%clk 0:01:28]} 21. Nf4 {[%clk 0:02:17]}  Nxf4 {[%clk 0:01:25]} 22. exf4 {[%clk 0:02:18]}  Qh5 {[%clk 0:01:19]} 23. d5 {[%clk 0:02:12]}  Bf6 {[%clk 0:01:16]} 24. Ng2 {[%clk 0:02:09]}  Qg6 {[%clk 0:01:10]} 25. Ne3 {[%clk 0:02:08]}  h5 {[%clk 0:01:10]} 26. dxc6 {[%clk 0:02:06]}  Bxc6 {[%clk 0:01:08]} 27. Bxf5 {[%clk 0:01:47]}  Qg7 {[%clk 0:01:06]} 28. b4 {[%clk 0:01:39]}  Bf3 {[%clk 0:01:05]} 29. Re1 {[%clk 0:01:38]}  h4 {[%clk 0:01:05]} 30. Rc7 {[%clk 0:01:28]}  hxg3 {[%clk 0:01:04]} 31. fxg3 {[%clk 0:01:27]}  Rad8 {[%clk 0:01:01]} 32. Qc2 {[%clk 0:01:22]}  Rxe3 {[%clk 0:00:59]} 33. Rxe3 {[%clk 0:01:15]}  Bd4 {[%clk 0:00:54]} 34. Re7 {[%clk 0:00:48]}  Bb6 {[%clk 0:00:49]} 35. Kf2 {[%clk 0:00:32]}  Qh6 {[%clk 0:00:39]} 36. h4 {[%clk 0:00:31]}  Qd6 {[%clk 0:00:37]} 37. Ke1 {[%clk 0:00:10]}  Bxe3 {[%clk 0:00:31]} 38. Rxe3 {[%clk 0:00:10]}  Qxb4+ {[%clk 0:00:30]} 39. Qc3 {[%clk 0:00:08]}  Qxc3+ {[%clk 0:00:21]} 40. Rxc3 {[%clk 0:00:09]}  Rd1+ {[%clk 0:00:20]} 41. Kf2 {[%clk 0:00:09]}  Rd2+ {[%clk 0:00:20]} 42. Ke3 {[%clk 0:00:09]}  Rxa2 {[%clk 0:00:20]} 43. Rc8+ {[%clk 0:00:09]}  Kg7 {[%clk 0:00:20]} 44. Rc7 {[%clk 0:00:09]}  Ra3+ {[%clk 0:00:20]} 45. Kd4 {[%clk 0:00:08]}  Kf6 {[%clk 0:00:20]} 46. Rxb7 {[%clk 0:00:08]}  Bxb7 {[%clk 0:00:18]} 47. Bd7 {[%clk 0:00:05]}  Rxg3 {[%clk 0:00:18]} 48. h5 {[%clk 0:00:05]}  Rh3 {[%clk 0:00:18]} 49. Bxg4 {[%clk 0:00:04]}  Rh4 {[%clk 0:00:19]} 50. Bd1 {[%clk 0:00:03]}  Rxf4+ {[%clk 0:00:18]} 51. Kc5 {[%clk 0:00:04]}  Rh4 {[%clk 0:00:18]} 52. Kd6 {[%clk 0:00:04]}  Kg5 {[%clk 0:00:18]} 53. Kc7 {[%clk 0:00:04]}  Be4 {[%clk 0:00:18]} 54. Kb8 {[%clk 0:00:04]}  Rxh5 {[%clk 0:00:17]} 55. Kxa7 {[%clk 0:00:01]}  Rh6 {[%clk 0:00:17]} 56. Kb8 {[%clk 0:00:01]}  f5 {[%clk 0:00:18]} 57. Kc7 {[%clk 0:00:02]}  f4 {[%clk 0:00:18]} 58. Kd7 {[%clk 0:00:03]}  f3 {[%clk 0:00:18]} 59. Ke7 {[%clk 0:00:04]}  f2 {[%clk 0:00:18]} 60. Be2 {[%clk 0:00:04]}  Kf4 {[%clk 0:00:17]} 61. Bb5 {[%clk 0:00:04]}  Bg2 {[%clk 0:00:16]} 62. Kf7 {[%clk 0:00:04]}  f1=Q {[%clk 0:00:16]} 63. Bxf1 {[%clk 0:00:03]}  Bxf1 {[%clk 0:00:16]} 64. Kg7 {[%clk 0:00:04]}  Rb6 {[%clk 0:00:13]} 65. Kf7 {[%clk 0:00:04]}  Ke5 {[%clk 0:00:13]} 66. Ke8 {[%clk 0:00:04]}  Rd6 {[%clk 0:00:13]} 67. Ke7 {[%clk 0:00:04]}  Bc4 {[%clk 0:00:12]} 68. Ke8 {[%clk 0:00:04]}  Kf6 {[%clk 0:00:09]} 69. Kf8 {[%clk 0:00:04]}  Rd8# {[%clk 0:00:09]} 0-1


[Site "https://www.chess.com"]

[Event "Titled Tuesday Blitz July 11 Late 2023"]
[White "Lopez Gracia, Fernando"]
[Black "rikchessmx"]
[WhiteFideId "2207184"]
[WhiteElo "2401"]
[BlackElo "2248"]
[Result "0-1"]
[Round "7"]
[TimeControl "180+2"]
[Date "2023.07.11"]
[WhiteClock "0:00:45"]
[BlackClock "0:01:23"]
[Board "124"]

1. e4 {[%clk 0:02:56]}  e5 {[%clk 0:02:58]} 2. Nf3 {[%clk 0:02:51]}  Nc6 {[%clk 0:02:59]} 3. d4 {[%clk 0:02:49]}  exd4 {[%clk 0:02:58]} 4. Nxd4 {[%clk 0:02:50]}  Nf6 {[%clk 0:02:54]} 5. Nc3 {[%clk 0:02:50]}  Bb4 {[%clk 0:02:54]} 6. Nxc6 {[%clk 0:02:50]}  bxc6 {[%clk 0:02:54]} 7. Bd3 {[%clk 0:02:49]}  d5 {[%clk 0:02:53]} 8. exd5 {[%clk 0:02:50]}  cxd5 {[%clk 0:02:54]} 9. O-O {[%clk 0:02:50]}  O-O {[%clk 0:02:54]} 10. Bg5 {[%clk 0:02:50]}  c6 {[%clk 0:02:55]} 11. Na4 {[%clk 0:02:49]}  Be7 {[%clk 0:02:53]} 12. c3 {[%clk 0:02:47]}  Be6 {[%clk 0:02:46]} 13. Re1 {[%clk 0:02:44]}  h6 {[%clk 0:02:43]} 14. Bh4 {[%clk 0:02:43]}  Qa5 {[%clk 0:02:37]} 15. Bc2 {[%clk 0:02:36]}  Rfe8 {[%clk 0:02:20]} 16. Qd3 {[%clk 0:02:30]}  Ne4 {[%clk 0:02:13]} 17. Bxe7 {[%clk 0:02:25]}  Rxe7 {[%clk 0:02:13]} 18. Rxe4 {[%clk 0:02:25]}  dxe4 {[%clk 0:02:12]} 19. Qxe4 {[%clk 0:02:26]}  g6 {[%clk 0:01:55]} 20. Re1 {[%clk 0:02:19]}  Rae8 {[%clk 0:01:48]} 21. Qd4 {[%clk 0:02:01]}  Bxa2 {[%clk 0:01:37]} 22. Rxe7 {[%clk 0:01:44]}  Rxe7 {[%clk 0:01:36]} 23. h3 {[%clk 0:01:44]}  Re1+ {[%clk 0:01:26]} 24. Kh2 {[%clk 0:01:43]}  Qc7+ {[%clk 0:01:26]} 25. g3 {[%clk 0:01:40]}  Bd5 {[%clk 0:01:26]} 26. f3 {[%clk 0:00:59]}  Re2+ {[%clk 0:01:23]} 27. Kh1 {[%clk 0:00:45]}  Qxg3 {[%clk 0:01:23]} 0-1


[Site "https://www.chess.com"]